{"text_format":"2","workbook":"xlsx","n_sheets":3,"sheets":["Sheet1","Sheet2","Sheet3"],"not_rendered":{"charts":0,"images":0,"macros":0,"external_links":0,"defined_names":0,"comments":0,"pivot_tables":0},"unopened":[],"bounds":{"document_bytes":16777216,"sheet_cells":100000,"run_cost":"one","rows_first":2000,"rows_last":500,"rows_between":2000,"halvings":0,"cell_chars":16384,"cell_head_chars":4096},"cells_cut":0,"cells_raw":0,"read":"whole","date_system":"1900"}

{"sheet":"Sheet1","index":0,"n_rows":81,"n_cols":3,"rows_kept":81,"cut":false,"hidden":false,"merged":[]}
["Distance frem og tilbage til VSB Kaplevej til brug for godtgørelses beregning"]
["kampsted","Adresse","km pr rundtur"]
["Akademisk Boldklub",null,17]
["Albertslund Stadion",null,50]
["Allerød Idrætspark","Møllemosevej 5, 3450 Allerød",40]
["avedøre stadion",null,52]
["Ballerup Idrætspark",null,32]
["BSV","Egebækvej 118, 2850 Nærum",16]
["Birkerød Stadion",null,18]
["Birkevang (hareskoven)",null,{"$f":"28.6*2","v":57.2}]
["Boldklubben fremad valby",null,{"$f":"27.3*2","v":54.6}]
["Brøndby","Brøndby Stadion 30, 2605 Brøndby",46]
["damsø",null,{"$f":"19.4*2","v":38.799999999999997}]
["espergærde","Gymnasievej 5, 3060 Espergærde",{"$f":"29.2*2","v":58.4}]
["Emdrupparken",null,20]
["farum","Farum Park 18, 3520 Farum",30]
["FIF-Stadion",null,0]
["fremad amager",null,{"$f":"35.4*2","v":70.8}]
["frederikssund","Bjergvejen 7, 3600 Frederikssund",{"$f":"34.2*2","v":68.400000000000006}]
["frederikssund","Kalvøvej 7A, 3600 Frederikssund"]
["FA2000 (Frederiksberg)",null,46]
["Frederiksværk Stadion","Sportsvej 7, 3300 Frederiksværk",{"$f":"43.4*2","v":86.8}]
["Gladsaxe skole",null,18]
["Greve Idræts Center Kunstgræs",null,64]
["Harboe Storhallen (holmegaard)",null,{"$f":"94.4*2","v":188.8}]
["Helsinge","Idrætsvej 21, 3200 Helsinge",{"$f":"47.3*2","v":94.6}]
["hareskov if",null,{"$f":"15.7*2","v":31.4}]
["herfølge",null,94]
["Herlev Stadion","Tvedvangen 200, 2730 Herlev",30]
["Herlev Stadion kunstgræsbane",null,30]
["herlufsholm","Herlufsholm Alle 233, 4700 Næstved",92]
["herstedøster",null,34]
["hillerød","Selskovvej 76,3400 Hillerød",{"$f":"29.8*2","v":59.6}]
["Holbæk Stadion",null,{"$f":"2*73.5","v":147}]
["Hollænderhallen",null,80]
["Hornbæk idrætspark","Carl Bødker Nielsens vej 3, 3100 Hornbæk",78]
["Hvidovre stadion",null,{"$f":"26.2*2","v":52.4}]
["Hørsholm","Stadionalle 5, 2960 Rungsted Kyst",{"$f":"15.4*2","v":30.8}]
["Hundested","Stadionvej 40, 3390 Hundested",{"$f":"64.6*2","v":129.19999999999999}]
["ishøj boldklub",null,{"$f":"29.3*2","v":58.6}]
["Islev Skole",null,34]
["Jægersborg",null,10]
["karlslunde (hallerne)","Kongens Enge 42, 2690 Karlslunde",76]
["Kunst, Tingbjerg IP",null,13]
["Kunst, Valby IP, tribunen",null,55]
["køge",null,100]
["lundtofte boldklub",null,12]
["Lyngby Stadion",null,{"$f":"3.7*2","v":7.4}]
["Måløv Idrætspark",null,32]
["Melby liseleje boldklub","Tollerupvej 27B, 3370 Melby",101]
["Nyhøj Idrætsanlæg",null,60]
["nivå kokkedal",null,39]
["Næstved Stadion",null,94]
["nykøbing falster fc",null,{"$f":"141*2","v":282}]
["odsherred","Ravnsbjergvej 25A, 4560 Vig",{"$f":"2*93","v":186}]
["Oppe-Sundby Stadion",null,65]
["roskilde kunst Hemmelev",null,78]
["ringsted","Anlægsvej 15, 4100 Ringsted",{"$f":"73*2","v":146}]
["rungsted",null,60]
["skovlunde",null,32]
["slagelse","Hjorthøjvej 57, 4200 Slagelse",212]
["slangerup stadion",null,52]
["Snekkersten",null,60]
["Spraglehøj Idrætsanlæg",null,{"$f":"36*2","v":72}]
["Stadion Vest (slagelse)",null,210]
["Stavnsholt (farum)",null,22]
["Sundby/Kløvermarken",null,50]
["Svogerslev Idrætspark",null,80]
["Sønderkærskolen",null,60]
["Taastrup fc",null,{"$f":"31.2*2","v":62.4}]
["Top Danmark Hallen (BSF)",null,32]
["Tølløse ",null,{"$f":"76*2","v":152}]
["tuse",null,152]
["vanløse ip","Idræts Alle 2, 2625 Vallensbæk",34]
["vallensbæk",null,36]
["Vemmelev","Skolevej 2, 4241 Vemmelev",218]
["vestia enghavevej 90 2450",null,{"$f":"17.4*2","v":34.799999999999997}]
["Vestamager Idrætsanlæg",null,50]
["Virum Stadion",null,4]
["Virumgård kunstgræsbane",null,4]
["Ølstykke Stadion",null,60]

{"sheet":"Sheet2","index":1,"n_rows":0,"n_cols":0,"rows_kept":0,"cut":false,"hidden":false,"merged":[]}

{"sheet":"Sheet3","index":2,"n_rows":0,"n_cols":0,"rows_kept":0,"cut":false,"hidden":false,"merged":[]}